[Event "*** Titled Tuesday Blitz"]
[Site "Chess.com"]
[Date "2021.02.09"]
[Round "5"]
[White "Sharpchess22"]
[Black "AlexTriapishko"]
[Result "1/2-1/2"]
[WhiteElo "2724"]
[BlackElo "2852"]
[TimeControl "180+1"]
[EndTime "11:00:54 PST"]
[Termination "Game drawn by 50-move rule"]

1. c4 {[%clk 0:03:00.9]} 1... c5 {[%clk 0:02:53.1]} 2. Nf3 {[%clk 0:02:59.4]}
2... Nc6 {[%clk 0:02:54]} 3. Nc3 {[%clk 0:02:56.7]} 3... g6 {[%clk 0:02:49.8]}
4. e3 {[%clk 0:02:56.1]} 4... Nf6 {[%clk 0:02:49.3]} 5. d4 {[%clk 0:02:55]} 5...
cxd4 {[%clk 0:02:50.2]} 6. exd4 {[%clk 0:02:54.7]} 6... d5 {[%clk 0:02:50.8]} 7.
cxd5 {[%clk 0:02:54.9]} 7... Nxd5 {[%clk 0:02:51.7]} 8. Qb3 {[%clk 0:02:53.8]}
8... Nxc3 {[%clk 0:02:52]} 9. Bc4 {[%clk 0:02:50.9]} 9... e6 {[%clk 0:02:51.9]}
10. bxc3 {[%clk 0:02:50.9]} 10... Bg7 {[%clk 0:02:51.3]} 11. Ba3 {[%clk
0:02:50.7]} 11... Bf8 {[%clk 0:02:51.8]} 12. Bxf8 {[%clk 0:02:49.7]} 12... Kxf8
{[%clk 0:02:52.7]} 13. O-O {[%clk 0:02:47.9]} 13... Kg7 {[%clk 0:02:52.1]} 14.
Bb5 {[%clk 0:02:40.9]} 14... Bd7 {[%clk 0:02:33]} 15. Qa3 {[%clk 0:02:39.4]}
15... a6 {[%clk 0:02:27]} 16. Bd3 {[%clk 0:02:36]} 16... Qa5 {[%clk 0:02:22]}
17. Qb2 {[%clk 0:02:28.9]} 17... Qc7 {[%clk 0:01:55.8]} 18. c4 {[%clk
0:02:27.9]} 18... f6 {[%clk 0:01:56]} 19. Rfe1 {[%clk 0:02:21]} 19... Rhe8
{[%clk 0:01:38.7]} 20. Rab1 {[%clk 0:02:15]} 20... Na5 {[%clk 0:01:30.1]} 21.
Qb4 {[%clk 0:02:05.1]} 21... Bc6 {[%clk 0:01:02.3]} 22. Qc5 {[%clk 0:02:03.3]}
22... Rac8 {[%clk 0:00:53.1]} 23. d5 {[%clk 0:01:30]} 23... Bd7 {[%clk
0:00:52.7]} 24. Qd4 {[%clk 0:01:18.6]} 24... e5 {[%clk 0:00:51.2]} 25. Qh4
{[%clk 0:00:55.7]} 25... Nxc4 {[%clk 0:00:35.1]} 26. Bxc4 {[%clk 0:00:55.1]}
26... Qxc4 {[%clk 0:00:35]} 27. Qxc4 {[%clk 0:00:55.2]} 27... Rxc4 {[%clk
0:00:34.8]} 28. Rxb7 {[%clk 0:00:55.4]} 28... Re7 {[%clk 0:00:35.5]} 29. Nd2
{[%clk 0:00:52]} 29... Rd4 {[%clk 0:00:34.9]} 30. Nb3 {[%clk 0:00:43.4]} 30...
Rxd5 {[%clk 0:00:35.1]} 31. h3 {[%clk 0:00:43.8]} 31... Kf7 {[%clk 0:00:35.2]}
32. Rb6 {[%clk 0:00:43]} 32... Bb5 {[%clk 0:00:30.3]} 33. Rc1 {[%clk 0:00:43.1]}
33... Red7 {[%clk 0:00:25.9]} 34. Kh2 {[%clk 0:00:42.9]} 34... R5d6 {[%clk
0:00:24.1]} 35. Rb8 {[%clk 0:00:42.4]} 35... Rd8 {[%clk 0:00:21.8]} 36. Rb7+
{[%clk 0:00:42.6]} 36... R6d7 {[%clk 0:00:22.3]} 37. Rb6 {[%clk 0:00:42.7]}
37... Rd6 {[%clk 0:00:21.3]} 38. Rb7+ {[%clk 0:00:43]} 38... R8d7 {[%clk
0:00:21.9]} 39. Rb8 {[%clk 0:00:42.9]} 39... h5 {[%clk 0:00:22.3]} 40. Rcc8
{[%clk 0:00:40]} 40... g5 {[%clk 0:00:21.3]} 41. Nc5 {[%clk 0:00:37]} 41... Re7
{[%clk 0:00:18.9]} 42. Ne4 {[%clk 0:00:35.9]} 42... Rc6 {[%clk 0:00:13.1]} 43.
Rf8+ {[%clk 0:00:33.1]} 43... Kg6 {[%clk 0:00:11.6]} 44. g4 {[%clk 0:00:33.4]}
44... hxg4 {[%clk 0:00:11.2]} 45. hxg4 {[%clk 0:00:33.4]} 45... Bd3 {[%clk
0:00:08.6]} 46. Ng3 {[%clk 0:00:32.4]} 46... Rc2 {[%clk 0:00:04.9]} 47. Kg1
{[%clk 0:00:32.1]} 47... Rc1+ {[%clk 0:00:04.8]} 48. Kg2 {[%clk 0:00:31.8]}
48... Rc2 {[%clk 0:00:03.5]} 49. Nh5 {[%clk 0:00:27.5]} 49... Be4+ {[%clk
0:00:02.9]} 50. Kg3 {[%clk 0:00:26]} 50... Rc3+ {[%clk 0:00:03.3]} 51. Kh2
{[%clk 0:00:26.2]} 51... Rc6 {[%clk 0:00:03.7]} 52. Rg8+ {[%clk 0:00:24]} 52...
Kf7 {[%clk 0:00:04.3]} 53. Rbf8+ {[%clk 0:00:23]} 53... Ke6 {[%clk 0:00:04.9]}
54. Rxf6+ {[%clk 0:00:23.2]} 54... Kd5 {[%clk 0:00:05.3]} 55. Rxc6 {[%clk
0:00:22.7]} 55... Kxc6 {[%clk 0:00:06.2]} 56. Rxg5 {[%clk 0:00:21.8]} 56... Bd5
{[%clk 0:00:06.2]} 57. Rf5 {[%clk 0:00:20.7]} 57... Bxa2 {[%clk 0:00:06]} 58. g5
{[%clk 0:00:20.5]} 58... Bb1 {[%clk 0:00:06.1]} 59. Rf6+ {[%clk 0:00:20]} 59...
Kb5 {[%clk 0:00:03.4]} 60. g6 {[%clk 0:00:20.4]} 60... Bxg6 {[%clk 0:00:03.2]}
61. Rxg6 {[%clk 0:00:20.4]} 61... a5 {[%clk 0:00:04.1]} 62. Nf6 {[%clk
0:00:20.5]} 62... Re6 {[%clk 0:00:03.7]} 63. Kg3 {[%clk 0:00:19.1]} 63... a4
{[%clk 0:00:03.9]} 64. Kg4 {[%clk 0:00:19.7]} 64... a3 {[%clk 0:00:04.4]} 65.
Kf5 {[%clk 0:00:20.2]} 65... a2 {[%clk 0:00:04.3]} 66. Rg1 {[%clk 0:00:20]}
66... Ra6 {[%clk 0:00:04.8]} 67. Ra1 {[%clk 0:00:19.6]} 67... Kc4 {[%clk
0:00:04.2]} 68. Ne4 {[%clk 0:00:19.6]} 68... Ra5 {[%clk 0:00:02.3]} 69. f3
{[%clk 0:00:16.3]} 69... Kd3 {[%clk 0:00:02.4]} 70. Nd6 {[%clk 0:00:15.8]} 70...
Kc3 {[%clk 0:00:01.9]} 71. Ne4+ {[%clk 0:00:15.4]} 71... Kb2 {[%clk 0:00:02]}
72. Rxa2+ {[%clk 0:00:15.8]} 72... Kxa2 {[%clk 0:00:02.9]} 73. Ng5 {[%clk
0:00:15]} 73... Kb3 {[%clk 0:00:03]} 74. Nf7 {[%clk 0:00:14.6]} 74... Kc4 {[%clk
0:00:03.6]} 75. Nxe5+ {[%clk 0:00:14.8]} 75... Kd4 {[%clk 0:00:04.3]} 76. f4
{[%clk 0:00:15.2]} 76... Ke3 {[%clk 0:00:04.7]} 77. Kg4 {[%clk 0:00:13.5]} 77...
Ke4 {[%clk 0:00:04.8]} 78. Ng6 {[%clk 0:00:13.3]} 78... Ra1 {[%clk 0:00:04.7]}
79. Kg5 {[%clk 0:00:13]} 79... Rg1+ {[%clk 0:00:05.6]} 80. Kf6 {[%clk
0:00:13.4]} 80... Rg2 {[%clk 0:00:04.7]} 81. Ne5 {[%clk 0:00:11.2]} 81... Kxf4
{[%clk 0:00:04.4]} 82. Ng6+ {[%clk 0:00:11.5]} 82... Ke3 {[%clk 0:00:04.4]} 83.
Ne5 {[%clk 0:00:10.9]} 83... Ke4 {[%clk 0:00:05]} 84. Ng6 {[%clk 0:00:10.6]}
84... Ra2 {[%clk 0:00:05.9]} 85. Ne7 {[%clk 0:00:08.7]} 85... Ra6+ {[%clk
0:00:06.8]} 86. Kf7 {[%clk 0:00:08.7]} 86... Ke5 {[%clk 0:00:07.6]} 87. Ng6+
{[%clk 0:00:09]} 87... Kd6 {[%clk 0:00:08.1]} 88. Kf6 {[%clk 0:00:08.8]} 88...
Ra1 {[%clk 0:00:09]} 89. Kf5 {[%clk 0:00:08.8]} 89... Rf1+ {[%clk 0:00:09.9]}
90. Nf4 {[%clk 0:00:09]} 90... Rf2 {[%clk 0:00:10.5]} 91. Ke4 {[%clk 0:00:09.1]}
91... Ra2 {[%clk 0:00:11.4]} 92. Kf5 {[%clk 0:00:08.4]} 92... Ra4 {[%clk
0:00:12.2]} 93. Ng6 {[%clk 0:00:06.3]} 93... Ra5+ {[%clk 0:00:12.5]} 94. Kf6
{[%clk 0:00:06.7]} 94... Ra1 {[%clk 0:00:13]} 95. Kg5 {[%clk 0:00:06.3]} 95...
Ra4 {[%clk 0:00:13.3]} 96. Nf4 {[%clk 0:00:06.7]} 96... Ke5 {[%clk 0:00:13.5]}
97. Ng6+ {[%clk 0:00:06.3]} 97... Ke6 {[%clk 0:00:13.9]} 98. Nf4+ {[%clk
0:00:06.5]} 98... Kf7 {[%clk 0:00:14.8]} 99. Kg4 {[%clk 0:00:06]} 99... Ra5
{[%clk 0:00:15.7]} 100. Kf3 {[%clk 0:00:04.2]} 100... Kf6 {[%clk 0:00:16.6]}
101. Ne2 {[%clk 0:00:04.2]} 101... Ra4 {[%clk 0:00:17.1]} 102. Ke3 {[%clk
0:00:04.2]} 102... Ke5 {[%clk 0:00:17.6]} 103. Kd3 {[%clk 0:00:04.2]} 103... Rh4
{[%clk 0:00:18.2]} 104. Nc3 {[%clk 0:00:05]} 104... Rh3+ {[%clk 0:00:18.6]} 105.
Kd2 {[%clk 0:00:05.3]} 105... Rh8 {[%clk 0:00:19.3]} 106. Ne2 {[%clk 0:00:06.2]}
106... Ke4 {[%clk 0:00:19.5]} 107. Nc3+ {[%clk 0:00:06.7]} 107... Kf3 {[%clk
0:00:20.2]} 108. Ne2 {[%clk 0:00:07.6]} 108... Rc8 {[%clk 0:00:20.7]} 109. Nd4+
{[%clk 0:00:07.2]} 109... Ke4 {[%clk 0:00:20.7]} 110. Ne2 {[%clk 0:00:07.3]}
110... Rd8+ {[%clk 0:00:21.3]} 111. Kc3 {[%clk 0:00:07.3]} 111... Ke3 {[%clk
0:00:22.2]} 112. Nc1 {[%clk 0:00:07.3]} 112... Rc8+ {[%clk 0:00:22.1]} 113. Kb2
{[%clk 0:00:07.9]} 113... Kd2 {[%clk 0:00:21.5]} 114. Nb3+ {[%clk 0:00:08.5]}
114... Kd3 {[%clk 0:00:22.4]} 115. Nc1+ {[%clk 0:00:08.6]} 115... Kc4 {[%clk
0:00:22.7]} 116. Kc2 {[%clk 0:00:09.4]} 116... Rb8 {[%clk 0:00:22.2]} 117. Kd2
{[%clk 0:00:10.1]} 117... Rb2+ {[%clk 0:00:21.9]} 118. Ke3 {[%clk 0:00:10.7]}
118... Rc2 {[%clk 0:00:20.2]} 119. Ne2 {[%clk 0:00:11.6]} 119... Ra2 {[%clk
0:00:19.7]} 120. Nf4 {[%clk 0:00:11.9]} 120... Ra8 {[%clk 0:00:18.9]} 121. Ke4
{[%clk 0:00:12.8]} 121... Re8+ {[%clk 0:00:19.3]} 122. Kf5 {[%clk 0:00:13.7]}
122... Kd4 {[%clk 0:00:20.1]} 123. Ng6 {[%clk 0:00:13.7]} 123... Kd5 {[%clk
0:00:19.5]} 124. Kf6 {[%clk 0:00:14.1]} 124... Re6+ {[%clk 0:00:18.1]} 125. Kf5
{[%clk 0:00:14.7]} 125... Ra6 {[%clk 0:00:19]} 126. Nf4+ {[%clk 0:00:14.6]}
126... Kd6 {[%clk 0:00:19.1]} 127. Ng6 {[%clk 0:00:15.5]} 127... Ra1 {[%clk
0:00:19.3]} 128. Nf4 {[%clk 0:00:15.3]} 128... Rf1 {[%clk 0:00:20.2]} 129. Ke4
{[%clk 0:00:15.4]} 129... Ke7 {[%clk 0:00:20.7]} 130. Nd5+ {[%clk 0:00:15.3]}
130... Ke6 {[%clk 0:00:21.1]} 131. Nf4+ {[%clk 0:00:16.2]} 131... Kf6 {[%clk
0:00:21.7]} 1/2-1/2

[Event "*** Titled Tuesday Blitz"]
[Site "Chess.com"]
[Date "2021.02.09"]
[Round "6"]
[White "igorcadilhac"]
[Black "OriTaichman"]
[Result "0-1"]
[WhiteElo "2309"]
[BlackElo "2541"]
[TimeControl "180+1"]
[EndTime "11:04:43 PST"]
[Termination "OriTaichman won by checkmate"]

1. e4 {[%clk 0:03:00.9]} 1... c5 {[%clk 0:02:59.8]} 2. Nf3 {[%clk 0:03:00.9]}
2... Nc6 {[%clk 0:03:00.2]} 3. Nc3 {[%clk 0:02:57]} 3... g6 {[%clk 0:02:59.9]}
4. d4 {[%clk 0:02:53.8]} 4... cxd4 {[%clk 0:03:00.8]} 5. Nxd4 {[%clk 0:02:54.4]}
5... Bg7 {[%clk 0:03:01.3]} 6. Be3 {[%clk 0:02:54.6]} 6... Nf6 {[%clk 0:03:00]}
7. Bc4 {[%clk 0:02:54.1]} 7... O-O {[%clk 0:02:59.4]} 8. Bb3 {[%clk 0:02:54.6]}
8... d6 {[%clk 0:02:57.5]} 9. f3 {[%clk 0:02:54.8]} 9... Bd7 {[%clk 0:02:56.4]}
10. Qd2 {[%clk 0:02:53.7]} 10... Na5 {[%clk 0:02:56.5]} 11. h4 {[%clk
0:02:49.3]} 11... Qc7 {[%clk 0:02:54.5]} 12. g4 {[%clk 0:02:46.4]} 12... Nc4
{[%clk 0:02:54.4]} 13. Bxc4 {[%clk 0:02:42.3]} 13... Qxc4 {[%clk 0:02:55.3]} 14.
g5 {[%clk 0:02:27.6]} 14... Nh5 {[%clk 0:02:54.6]} 15. Nd5 {[%clk 0:02:27.1]}
15... Rfe8 {[%clk 0:02:29.1]} 16. O-O-O {[%clk 0:02:00.9]} 16... Qxa2 {[%clk
0:02:26.4]} 17. Qb4 {[%clk 0:01:48.1]} 17... Ng3 {[%clk 0:02:11.6]} 18. Rh2
{[%clk 0:01:39.6]} 18... Nf1 {[%clk 0:01:59.5]} 19. Re2 {[%clk 0:01:21.9]} 19...
Qa1# {[%clk 0:01:58.5]} 0-1

[Event "*** Titled Tuesday Blitz"]
[Site "Chess.com"]
[Date "2021.02.09"]
[Round "6"]
[White "jaramsdal"]
[Black "AldokhinIvan"]
[Result "0-1"]
[WhiteElo "2299"]
[BlackElo "2470"]
[TimeControl "180+1"]
[EndTime "11:04:49 PST"]
[Termination "AldokhinIvan won by resignation"]

1. d4 {[%clk 0:03:00.9]} 1... Nf6 {[%clk 0:02:49.8]} 2. c4 {[%clk 0:02:57.8]}
2... g6 {[%clk 0:02:49.7]} 3. Nc3 {[%clk 0:02:57.4]} 3... Bg7 {[%clk 0:02:50]}
4. e4 {[%clk 0:02:57.3]} 4... d6 {[%clk 0:02:50.7]} 5. h3 {[%clk 0:02:56.8]}
5... O-O {[%clk 0:02:51]} 6. Nf3 {[%clk 0:02:55.9]} 6... Nc6 {[%clk 0:02:51.2]}
7. g4 {[%clk 0:02:33.4]} 7... Re8 {[%clk 0:02:49.1]} 8. g5 {[%clk 0:02:29.4]}
8... Nh5 {[%clk 0:02:47.3]} 9. d5 {[%clk 0:02:26.9]} 9... Nb4 {[%clk 0:02:47.1]}
10. a3 {[%clk 0:02:20]} 10... Na6 {[%clk 0:02:46.3]} 11. Be3 {[%clk 0:02:15.6]}
11... e6 {[%clk 0:02:45.7]} 12. Be2 {[%clk 0:02:14.3]} 12... exd5 {[%clk
0:02:45.2]} 13. exd5 {[%clk 0:02:14.2]} 13... Nc5 {[%clk 0:02:44.8]} 14. Nd4
{[%clk 0:02:03.7]} 14... Rxe3 {[%clk 0:02:42.6]} 15. fxe3 {[%clk 0:02:00.8]}
15... Qxg5 {[%clk 0:02:42.8]} 16. Bxh5 {[%clk 0:01:00.3]} 16... Qxe3+ {[%clk
0:02:37.4]} 17. Nde2 {[%clk 0:01:00.6]} 17... Nd3+ {[%clk 0:02:30.9]} 18. Qxd3
{[%clk 0:01:01.2]} 18... Qxd3 {[%clk 0:02:31]} 19. Bg4 {[%clk 0:00:55.1]} 19...
f5 {[%clk 0:02:30.1]} 20. Rd1 {[%clk 0:00:54.8]} 20... Qe3 {[%clk 0:02:28.6]}
0-1

[Event "*** Titled Tuesday Blitz"]
[Site "Chess.com"]
[Date "2021.02.09"]
[Round "6"]
[White "mikolka1985"]
[Black "SanQui14"]
[Result "1-0"]
[WhiteElo "2613"]
[BlackElo "2453"]
[TimeControl "180+1"]
[EndTime "11:04:57 PST"]
[Termination "mikolka1985 won by resignation"]

1. d4 {[%clk 0:03:00.9]} 1... Nf6 {[%clk 0:02:59.3]} 2. c4 {[%clk 0:02:59.1]}
2... g6 {[%clk 0:02:59.4]} 3. Nc3 {[%clk 0:02:58.2]} 3... d5 {[%clk 0:02:59.9]}
4. cxd5 {[%clk 0:02:57.6]} 4... Nxd5 {[%clk 0:03:00.8]} 5. e4 {[%clk 0:02:57.4]}
5... Nxc3 {[%clk 0:03:01.3]} 6. bxc3 {[%clk 0:02:57]} 6... c5 {[%clk 0:03:02.1]}
7. Bc4 {[%clk 0:02:55.7]} 7... Bg7 {[%clk 0:03:01.9]} 8. Ne2 {[%clk 0:02:55.1]}
8... Nc6 {[%clk 0:03:00.6]} 9. Be3 {[%clk 0:02:54.6]} 9... O-O {[%clk 0:03:00]}
10. O-O {[%clk 0:02:54.2]} 10... Qc7 {[%clk 0:03:00.3]} 11. Rc1 {[%clk
0:02:53.2]} 11... Rd8 {[%clk 0:03:00.6]} 12. Bf4 {[%clk 0:02:44]} 12... Be5
{[%clk 0:02:59.9]} 13. Bxe5 {[%clk 0:02:43.2]} 13... Nxe5 {[%clk 0:03:00.8]} 14.
Bb3 {[%clk 0:02:43.1]} 14... Ng4 {[%clk 0:03:01.1]} 15. Ng3 {[%clk 0:02:42.4]}
15... Qf4 {[%clk 0:02:52.1]} 16. h3 {[%clk 0:01:48.5]} 16... Nxf2 {[%clk
0:02:45.3]} 17. Rxf2 {[%clk 0:01:47.8]} 17... Qxg3 {[%clk 0:02:43.2]} 18. Rxf7
{[%clk 0:01:44]} 18... Qe3+ {[%clk 0:02:12.9]} 19. Kh1 {[%clk 0:01:41.9]} 19...
e6 {[%clk 0:02:09.2]} 20. Qf1 {[%clk 0:01:27.8]} 20... Bd7 {[%clk 0:01:53.4]}
21. Rxd7 {[%clk 0:01:25.7]} 21... Rxd7 {[%clk 0:01:53]} 22. Bxe6+ {[%clk
0:01:25.5]} 22... Kg7 {[%clk 0:01:53]} 23. Bxd7 {[%clk 0:01:25.4]} 23... cxd4
{[%clk 0:01:53.3]} 24. cxd4 {[%clk 0:01:24.9]} 1-0

[Event "*** Titled Tuesday Blitz"]
[Site "Chess.com"]
[Date "2021.02.09"]
[Round "6"]
[White "PavelChernomordik"]
[Black "FMOlexandrProhorov"]
[Result "1-0"]
[WhiteElo "2383"]
[BlackElo "2142"]
[TimeControl "180+1"]
[EndTime "11:04:59 PST"]
[Termination "PavelChernomordik won by resignation"]

1. e4 {[%clk 0:02:58.1]} 1... c5 {[%clk 0:02:59.3]} 2. Nc3 {[%clk 0:02:57.2]}
2... Nc6 {[%clk 0:02:59]} 3. Bb5 {[%clk 0:02:56.7]} 3... Nd4 {[%clk 0:02:58.7]}
4. Bc4 {[%clk 0:02:56.3]} 4... g6 {[%clk 0:02:56.8]} 5. Nge2 {[%clk 0:02:56]}
5... Bg7 {[%clk 0:02:56.7]} 6. Nxd4 {[%clk 0:02:56.1]} 6... cxd4 {[%clk
0:02:56.7]} 7. Qf3 {[%clk 0:02:56]} 7... Nh6 {[%clk 0:02:52.1]} 8. Ne2 {[%clk
0:02:54.9]} 8... O-O {[%clk 0:02:50]} 9. h3 {[%clk 0:02:54.5]} 9... e6 {[%clk
0:02:45.8]} 10. g4 {[%clk 0:02:50]} 10... f5 {[%clk 0:02:32.5]} 11. exf5 {[%clk
0:02:38]} 11... gxf5 {[%clk 0:02:33.4]} 12. g5 {[%clk 0:02:27.5]} 12... Qxg5
{[%clk 0:02:21.2]} 13. Rg1 {[%clk 0:02:26.8]} 13... Qh4 {[%clk 0:02:10.1]} 14.
d3 {[%clk 0:02:24.8]} 14... d5 {[%clk 0:02:04.8]} 15. Bg5 {[%clk 0:02:23.7]}
15... Qxg5 {[%clk 0:01:20.7]} 16. Rxg5 {[%clk 0:02:21.3]} 16... dxc4 {[%clk
0:01:21.6]} 17. Qg2 {[%clk 0:02:07.7]} 17... Rf7 {[%clk 0:01:20.2]} 18. O-O-O
{[%clk 0:02:05.9]} 18... cxd3 {[%clk 0:01:09]} 19. Rxd3 {[%clk 0:02:03.5]} 1-0

[Event "*** Titled Tuesday Blitz"]
[Site "Chess.com"]
[Date "2021.02.09"]
[Round "6"]
[White "floplover"]
[Black "GM_LOADING"]
[Result "0-1"]
[WhiteElo "2291"]
[BlackElo "2468"]
[TimeControl "180+1"]
[EndTime "11:05:04 PST"]
[Termination "GM_LOADING won by resignation"]

1. d4 {[%clk 0:03:00.9]} 1... Nf6 {[%clk 0:02:59.9]} 2. c4 {[%clk 0:03:00.8]}
2... e6 {[%clk 0:02:59.8]} 3. Nc3 {[%clk 0:03:00.6]} 3... Bb4 {[%clk 0:03:00.2]}
4. Qc2 {[%clk 0:03:00.3]} 4... Nc6 {[%clk 0:02:59.9]} 5. Nf3 {[%clk 0:02:59]}
5... d6 {[%clk 0:02:58.6]} 6. Bd2 {[%clk 0:02:57.1]} 6... e5 {[%clk 0:02:53.7]}
7. e3 {[%clk 0:02:31.4]} 7... O-O {[%clk 0:02:50.8]} 8. a3 {[%clk 0:02:29.4]}
8... Bxc3 {[%clk 0:02:46.5]} 9. Bxc3 {[%clk 0:02:30.3]} 9... Qe7 {[%clk
0:02:46.6]} 10. d5 {[%clk 0:02:23.7]} 10... Nb8 {[%clk 0:02:44.7]} 11. Be2
{[%clk 0:02:08.9]} 11... Bg4 {[%clk 0:02:44.2]} 12. h3 {[%clk 0:02:07.9]} 12...
Bh5 {[%clk 0:02:43.9]} 13. O-O {[%clk 0:02:07]} 13... Nbd7 {[%clk 0:02:43.7]}
14. Rfe1 {[%clk 0:02:00.1]} 14... a5 {[%clk 0:02:42.7]} 15. b3 {[%clk
0:01:56.5]} 15... Nc5 {[%clk 0:02:38.4]} 16. Nd2 {[%clk 0:01:35.4]} 16... Bxe2
{[%clk 0:02:36.5]} 17. Rxe2 {[%clk 0:01:36.3]} 17... Nh5 {[%clk 0:02:25.3]} 18.
e4 {[%clk 0:01:29.4]} 18... Nf4 {[%clk 0:02:14.1]} 19. Nf3 {[%clk 0:00:50]}
19... Nxe2+ {[%clk 0:02:13.1]} 20. Qxe2 {[%clk 0:00:50.9]} 20... Nxb3 {[%clk
0:02:13.1]} 0-1

[Event "*** Titled Tuesday Blitz"]
[Site "Chess.com"]
[Date "2021.02.09"]
[Round "6"]
[White "sergeikim"]
[Black "erlesfar"]
[Result "0-1"]
[WhiteElo "2418"]
[BlackElo "2556"]
[TimeControl "180+1"]
[EndTime "11:05:05 PST"]
[Termination "erlesfar won by resignation"]

1. d4 {[%clk 0:02:55.4]} 1... Nf6 {[%clk 0:02:59.2]} 2. c4 {[%clk 0:02:55.1]}
2... c5 {[%clk 0:02:58.7]} 3. d5 {[%clk 0:02:54.7]} 3... b5 {[%clk 0:02:58.7]}
4. cxb5 {[%clk 0:02:54.7]} 4... a6 {[%clk 0:02:56.2]} 5. b6 {[%clk 0:02:54.7]}
5... e6 {[%clk 0:02:54]} 6. Nc3 {[%clk 0:02:54.4]} 6... Nxd5 {[%clk 0:02:53.6]}
7. Nxd5 {[%clk 0:02:54.2]} 7... exd5 {[%clk 0:02:53.8]} 8. Qxd5 {[%clk 0:02:54]}
8... Nc6 {[%clk 0:02:53.9]} 9. e4 {[%clk 0:02:53.8]} 9... Be7 {[%clk 0:02:52.5]}
10. Bc4 {[%clk 0:02:50.4]} 10... O-O {[%clk 0:02:52.1]} 11. Nf3 {[%clk
0:02:50.3]} 11... Bb7 {[%clk 0:02:49.9]} 12. Qh5 {[%clk 0:02:43.3]} 12... Qxb6
{[%clk 0:02:43.1]} 13. O-O {[%clk 0:02:35.2]} 13... Nd4 {[%clk 0:02:41.2]} 14.
Nxd4 {[%clk 0:02:30.2]} 14... cxd4 {[%clk 0:02:39.9]} 15. Bd3 {[%clk 0:02:26.1]}
15... g6 {[%clk 0:02:35.9]} 16. Qh6 {[%clk 0:02:24.1]} 16... Bf6 {[%clk
0:02:34.3]} 17. f4 {[%clk 0:02:22]} 17... Bg7 {[%clk 0:02:33.4]} 18. Qh4 {[%clk
0:02:20.6]} 18... Rae8 {[%clk 0:02:25.1]} 19. f5 {[%clk 0:02:19.1]} 19... d5
{[%clk 0:02:04.6]} 20. f6 {[%clk 0:02:08.6]} 20... Bh8 {[%clk 0:02:03.7]} 21.
Rf3 {[%clk 0:01:24.2]} 21... dxe4 {[%clk 0:01:53.4]} 22. Qxh7+ {[%clk
0:01:21.2]} 22... Kxh7 {[%clk 0:01:52]} 23. Rh3+ {[%clk 0:01:21.1]} 23... Kg8
{[%clk 0:01:51.3]} 0-1

[Event "*** Titled Tuesday Blitz"]
[Site "Chess.com"]
[Date "2021.02.09"]
[Round "6"]
[White "csati17"]
[Black "alexrustemov"]
[Result "0-1"]
[WhiteElo "2574"]
[BlackElo "2763"]
[TimeControl "180+1"]
[EndTime "11:05:29 PST"]
[Termination "alexrustemov won by resignation"]

1. c4 {[%clk 0:03:00.9]} 1... c5 {[%clk 0:02:59.5]} 2. Nc3 {[%clk 0:03:00.1]}
2... g6 {[%clk 0:02:59.9]} 3. g3 {[%clk 0:02:59.4]} 3... Bg7 {[%clk 0:03:00.4]}
4. Bg2 {[%clk 0:02:59.2]} 4... Nc6 {[%clk 0:03:00.9]} 5. e3 {[%clk 0:02:57.7]}
5... Bxc3 {[%clk 0:02:59.1]} 6. dxc3 {[%clk 0:02:57.1]} 6... Qc7 {[%clk
0:02:59]} 7. Ne2 {[%clk 0:02:57.4]} 7... b6 {[%clk 0:02:58.8]} 8. O-O {[%clk
0:02:56.5]} 8... Bb7 {[%clk 0:02:58.8]} 9. e4 {[%clk 0:02:44.7]} 9... d6 {[%clk
0:02:58.5]} 10. Nf4 {[%clk 0:02:35.8]} 10... e6 {[%clk 0:02:57.9]} 11. Nd3
{[%clk 0:02:28.4]} 11... Nf6 {[%clk 0:02:45.7]} 12. Bg5 {[%clk 0:02:20]} 12...
Nd7 {[%clk 0:02:45]} 13. f4 {[%clk 0:02:15.1]} 13... f6 {[%clk 0:02:35.7]} 14.
Bh4 {[%clk 0:02:12.7]} 14... O-O-O {[%clk 0:02:29.4]} 15. f5 {[%clk 0:01:58]}
15... exf5 {[%clk 0:02:26.5]} 16. g4 {[%clk 0:01:37.5]} 16... g5 {[%clk
0:02:20.9]} 17. Bf2 {[%clk 0:01:18.2]} 17... f4 {[%clk 0:02:20.4]} 18. Ne1
{[%clk 0:00:47.5]} 18... Nde5 {[%clk 0:02:19.2]} 19. b3 {[%clk 0:00:43.7]} 19...
h5 {[%clk 0:02:18.8]} 20. gxh5 {[%clk 0:00:37.9]} 20... Qf7 {[%clk 0:02:18.5]}
21. Bh3+ {[%clk 0:00:35.8]} 21... Kb8 {[%clk 0:02:16.9]} 22. Bg4 {[%clk
0:00:33.7]} 22... Nxg4 {[%clk 0:02:16.2]} 23. Qxg4 {[%clk 0:00:34.6]} 23... Ne5
{[%clk 0:02:16.5]} 0-1

[Event "*** Titled Tuesday Blitz"]
[Site "Chess.com"]
[Date "2021.02.09"]
[Round "6"]
[White "garicradomir"]
[Black "Skat2704"]
[Result "0-1"]
[WhiteElo "2224"]
[BlackElo "2525"]
[TimeControl "180+1"]
[EndTime "11:05:30 PST"]
[Termination "Skat2704 won by resignation"]

1. e4 {[%clk 0:03:00.9]} 1... c5 {[%clk 0:02:57.7]} 2. Nf3 {[%clk 0:03:01.1]}
2... Nc6 {[%clk 0:02:53.4]} 3. Bb5 {[%clk 0:03:00.2]} 3... e6 {[%clk 0:02:51.8]}
4. O-O {[%clk 0:02:59]} 4... Nge7 {[%clk 0:02:49.9]} 5. Re1 {[%clk 0:02:59.3]}
5... a6 {[%clk 0:02:48.6]} 6. Bf1 {[%clk 0:02:59.8]} 6... Ng6 {[%clk 0:02:46.5]}
7. c3 {[%clk 0:02:57.7]} 7... Be7 {[%clk 0:02:44.6]} 8. d4 {[%clk 0:02:57.6]}
8... cxd4 {[%clk 0:02:42.7]} 9. cxd4 {[%clk 0:02:58.5]} 9... d5 {[%clk
0:02:41.2]} 10. exd5 {[%clk 0:02:59.1]} 10... exd5 {[%clk 0:02:38.7]} 11. Nc3
{[%clk 0:02:58.3]} 11... O-O {[%clk 0:02:35.8]} 12. g3 {[%clk 0:02:58.5]} 12...
Be6 {[%clk 0:02:28.3]} 13. Bg2 {[%clk 0:02:53.4]} 13... Rc8 {[%clk 0:02:26.1]}
14. h4 {[%clk 0:02:52.8]} 14... Bg4 {[%clk 0:02:20.2]} 15. Be3 {[%clk
0:02:48.3]} 15... b5 {[%clk 0:02:17.2]} 16. Qd2 {[%clk 0:02:43.6]} 16... Bb4
{[%clk 0:02:10]} 17. a3 {[%clk 0:02:41.7]} 17... Bxc3 {[%clk 0:02:02.6]} 18.
bxc3 {[%clk 0:02:41.6]} 18... Na5 {[%clk 0:02:01.4]} 19. Ne5 {[%clk 0:02:35.9]}
19... Nxe5 {[%clk 0:01:58.7]} 20. dxe5 {[%clk 0:02:36.8]} 20... Nb3 {[%clk
0:01:57.6]} 21. Qxd5 {[%clk 0:02:33.6]} 21... Qxd5 {[%clk 0:01:55.2]} 22. Bxd5
{[%clk 0:02:34.5]} 22... Nxa1 {[%clk 0:01:53.1]} 23. Rxa1 {[%clk 0:02:34.4]}
23... Rxc3 {[%clk 0:01:51.3]} 24. a4 {[%clk 0:02:33.2]} 24... b4 {[%clk
0:01:48.1]} 25. a5 {[%clk 0:02:27.5]} 25... Rd8 {[%clk 0:01:44.2]} 26. Bb7
{[%clk 0:02:23.9]} 26... Rd1+ {[%clk 0:01:40.1]} 27. Rxd1 {[%clk 0:02:22.7]}
27... Bxd1 {[%clk 0:01:39.4]} 28. Bxa6 {[%clk 0:02:06.1]} 28... b3 {[%clk
0:01:34.8]} 29. Bd4 {[%clk 0:02:06.3]} 29... b2 {[%clk 0:01:33.6]} 30. Bxc3
{[%clk 0:02:05.7]} 30... b1=Q {[%clk 0:01:30.6]} 31. Kg2 {[%clk 0:01:55.6]}
31... Qe4+ {[%clk 0:01:29.4]} 32. Kg1 {[%clk 0:01:49.3]} 32... Qc6 {[%clk
0:01:28.5]} 0-1